bitfinex/quotes_SOLUSD_20220212
["timestamp","ask_amount","ask_price","bid_price","bid_amount"]
[1644631575510,38.832611,98.279,98.223,5.77777216]
[1644631576010,38.832611,98.279,98.226,2.80680295]
[1644631576431,38.832611,98.279,98.227,2.80680295]
[1644631576629,38.832611,98.279,98.228,2.80680295]
[1644631577230,38.832611,98.279,98.224,8.58457511]
[1644631577429,38.832611,98.279,98.229,5.77777216]
[1644631577630,38.832611,98.279,98.227,2.80680295]
[1644631579231,24.8673,98.299,98.227,2.80680295]
[1644631579432,15.2741,98.29,98.234,2.80680295]
[1644631579631,15.2741,98.29,98.238,2.80680295]
[1644631579832,15.2741,98.29,98.237,2.80680295]
[1644631580234,44.13638138,98.289,98.238,48.07957622]
[1644631580435,44.13638138,98.289,98.239,5.77777216]
[1644631582634,15.2755,98.28,98.238,48.07957622]
[1644631583735,15.2755,98.28,98.239,5.77766897]
[1644631585640,15.2741,98.29,98.239,8.58447192]
[1644631586041,15.2741,98.29,98.24,2.80680295]
[1644631586540,38.33750789,98.289,98.24,2.80680295]
[1644631587040,38.33750789,98.289,98.241,5.77766897]
[1644631587340,38.33750789,98.289,98.24,2.80680295]
[1644631588742,38.33750789,98.289,98.242,2.80680295]
[1644631588942,15.2725,98.3,98.243,2.80680295]
[1644631589343,15.2725,98.3,98.242,2.80680295]
[1644631589544,15.2725,98.3,98.24,8.58447192]
[1644631589743,15.2725,98.3,98.242,2.80680295]
[1644631589944,39.37392374,98.299,98.242,2.80680295]
[1644631590142,39.37392374,98.299,98.241,2.80680295]
[1644631590642,39.37392374,98.299,98.24,2.80680295]
[1644631591046,15.2725,98.3,98.24,2.80680295]
[1644631591249,29.9507,98.32,98.25,2.80680295]
[1644631591446,2.38366791,98.337,98.251,5.087]
[1644631591648,2.38366791,98.337,98.254,2.80680295]
[1644631592047,36.65587639,98.336,98.255,44.64254859]
[1644631592248,36.65587639,98.336,98.26,15.2686]
[1644631592448,2.38366791,98.335,98.26,15.2686]
[1644631592851,2.38366791,98.335,98.261,5.77766897]
[1644631593949,2.38366791,98.335,98.26,15.2686]
[1644631594149,2.38366791,98.335,98.255,44.64254859]
[1644631594351,2.38366791,98.335,98.256,5.7764996]
[1644631595354,2.38366791,98.335,98.26,15.2679]
[1644631595554,2.38366791,98.335,98.261,5.7764996]
[1644631595751,2.38366791,98.335,98.26,15.2679]
[1644631596552,2.38366791,98.335,98.255,44.64254859]
[1644631596851,2.38366791,98.335,98.271,43.37424634]
[1644631597652,2.38366791,98.348,98.271,43.37424634]
[1644631598052,2.38366791,98.348,98.272,10.86025944]
[1644631598251,2.38366791,98.348,98.273,5.77525944]
[1644631598452,2.38366791,98.348,98.274,5.085]
[1644631598655,39.45443589,98.347,98.274,5.085]
[1644631598854,39.45443589,98.347,98.272,5.085]
[1644631599053,2.38366791,98.346,98.272,5.085]
[1644631599754,23.287,98.37,98.272,5.085]
[1644631599755,2.38366791,98.366,98.272,5.085]
[1644631599954,2.38366791,98.366,98.273,5.7748466]
[1644631600156,2.38366791,98.366,98.274,5.085]
[1644631600557,34.51379267,98.365,98.275,5.7748466]
[1644631600759,34.51379267,98.365,98.276,5.085]
[1644631600955,34.51379267,98.365,98.277,5.7748466]
[1644631601157,34.51379267,98.365,98.3,15.2617]
[1644631601354,34.51379267,98.365,98.301,46.26144285]
[1644631602957,34.51379267,98.365,98.31,15.2613]
[1644631603356,36.89746058,98.365,98.281,5.085]
[1644631603555,24.0532,98.364,98.281,5.085]
[1644631603758,14.68,98.35,98.281,5.085]
[1644631603960,15.2674,98.34,98.281,5.085]
[1644631604355,35.34473748,98.339,98.281,46.25364891]
[1644631604558,37.72840539,98.339,98.281,46.25364891]
[1644631604755,2.38366791,98.338,98.281,46.25364891]
[1644631605157,2.38366791,98.338,98.27,15.2674]
[1644631606156,2.38366791,98.338,98.271,37.98585173]
[1644631609881,35.34473748,98.339,98.271,37.98585173]
[1644631609882,35.34473748,98.339,98.272,5.77479741]
[1644631610464,2.38366791,98.377,98.272,5.77479741]
[1644631610663,14.9258,98.453,98.282,2.80680295]
[1644631610664,23.3199,98.402,98.282,2.80680295]
[1644631610861,2.38366791,98.4,98.281,2.80680295]
[1644631611061,2.38366791,98.4,98.281,5.77479741]
[1644631611261,17.06366791,98.4,98.281,5.77479741]
[1644631611468,42.072771,98.368,98.281,5.77479741]
[1644631611661,42.072771,98.368,98.282,5.085]
[1644631611860,42.072771,98.368,98.32,15.2587]
[1644631612261,42.072771,98.368,98.308,5.083]
[1644631612461,42.072771,98.368,98.307,39.38787054]
[1644631612667,42.072771,98.368,98.29,50.866]
[1644631612862,42.072771,98.368,98.31,15.2614]
[1644631619591,42.072771,98.368,98.3,15.2629]
[1644631619787,2.38366791,98.367,98.291,5.083]
[1644631620389,14.68,98.36,98.291,5.083]
[1644631620588,29.944,98.36,98.27,15.2674]
[1644631620787,25.11856791,98.359,98.27,15.2674]
[1644631621188,2.38366791,98.358,98.27,15.2674]
[1644631621590,15.2679,98.35,98.28,15.2659]
[1644631621793,40.49243126,98.349,98.281,41.83874321]
[1644631622191,40.49243126,98.349,98.282,5.085]
[1644631622390,40.49243126,98.349,98.281,41.83874321]
[1644631622789,40.49243126,98.349,98.29,15.2646]
[1644631623190,40.49243126,98.349,98.269,2.80680295]
[1644631623390,40.49243126,98.349,98.268,5.086]
[1644631623591,40.49243126,98.349,98.269,5.7749097]
[1644631623992,40.49243126,98.349,98.28,15.2658]
[1644631624592,40.49243126,98.349,98.27,43.85573663]
[1644631624798,40.49243126,98.349,98.281,2.38366791]
[1644631624994,40.49243126,98.349,98.282,2.80680295]
[1644631625194,40.49243126,98.349,98.282,8.58064551]
[1644631625693,40.49243126,98.349,98.286,2.80680295]
[1644631625894,40.49243126,98.349,98.286,8.58064551]
[1644631626396,40.49243126,98.349,98.31,15.2614]
[1644631626995,40.49243126,98.349,98.281,2.80680295]
[1644631627198,40.49243126,98.349,98.282,5.085]
[1644631627400,40.49243126,98.349,98.283,5.77406289]
[1644631627796,40.49243126,98.349,98.28,53.67810295]
[1644631627797,40.49243126,98.349,98.284,48.10995073]
[1644631627998,40.49243126,98.349,98.285,5.77406289]
[1644631628396,40.49243126,98.349,98.31,15.2615]
[1644631645827,40.49243126,98.349,98.31,5.2615]
[1644631646025,2.38366791,98.348,98.31,0.0015]
[1644631646526,22.6864,98.347,98.31,0.0015]
[1644631646725,54.3837,98.347,98.31,0.0015]
[1644631646925,2.38366791,98.346,98.31,0.0015]
[1644631647126,14.68,98.34,98.31,0.0015]
[1644631647528,2.38366791,98.339,98.31,0.0015]
[1644631652958,61.54,98.329,98.31,0.0015]
[1644631653256,2.38366791,98.339,98.22,0.024]
[1644631653257,98.491321,98.319,98.22,0.024]
[1644631653455,183.55,98.28,98.217,5.085]
[1644631653657,14.68,98.27,98.217,5.085]
[1644631654256,2.38366791,98.269,98.217,5.085]
[1644631654458,35.21792489,98.268,98.217,5.085]
[1644631654658,35.21792489,98.268,98.217,3.065]
[1644631654858,31.38366791,98.267,98.17,15.2815]
[1644631655059,78.72476791,98.267,98.17,15.2815]
[1644631655258,7.47366791,98.266,98.17,15.2815]
[1644631655658,2.38366791,98.265,98.171,43.73902157]
[1644631655858,5.09,98.264,98.171,43.73902157]
[1644631656057,14.68,98.25,98.171,43.73902157]
[1644631656259,15.2837,98.24,98.171,43.73902157]
[1644631656459,14.68,98.23,98.171,43.73902157]
[1644631656658,36.56923299,98.229,98.171,43.73902157]
[1644631656858,36.56923299,98.229,98.172,5.091]
[1644631657260,36.56923299,98.229,98.171,5.091]
[1644631657459,36.56923299,98.229,98.155,5.091]
[1644631657659,36.56923299,98.229,98.156,5.091]
[1644631658062,36.56923299,98.229,98.157,43.94235514]
[1644631658460,36.56923299,98.229,98.18,15.2814]
[1644631658658,36.56923299,98.229,98.181,5.091]
[1644631660866,36.56923299,98.229,98.18,15.2814]
[1644631661472,14.68,98.23,98.18,15.2814]
[1644631661668,2.38366791,98.268,98.181,2.38366791]
[1644631661967,5.091,98.288,98.182,10.8294551]
[1644631662268,14.68,98.31,98.183,29.2011551]
[1644631662466,44.40871869,98.309,98.184,10.8294551]
[1644631662666,44.40871869,98.309,98.184,5.089]
[1644631662866,44.40871869,98.309,98.191,42.50366889]
[1644631663066,44.40871869,98.309,98.192,5.089]
[1644631663270,44.40871869,98.309,98.192,7.47266791]
[1644631663869,15.274,98.3,98.22,15.2747]
[1644631664068,5.088,98.299,98.221,37.04297714]
[1644631664769,28.2925,98.299,98.221,37.04297714]
[1644631665068,28.2925,98.299,98.22,15.2747]
[1644631665269,15.2752,98.29,98.22,15.2747]
[1644631665471,5.088,98.289,98.22,15.2747]
[1644631666271,15.2765,98.28,98.22,15.2747]
[1644631666474,40.55234933,98.279,98.22,15.2747]
[1644631666674,45.64134933,98.279,98.21,15.2765]
[1644631669902,45.64134933,98.279,98.205,35.20172275]
[1644631670590,45.64134933,98.279,98.21,50.9081]
[1644631671185,45.64134933,98.279,98.22,15.274]
[1644631672682,45.64134933,98.279,98.21,15.3008]
[1644631672882,24.7835,98.278,98.21,15.3008]
[1644631673182,5.089,98.277,98.21,0.024]
[1644631673787,5.089,98.277,98.18,0.024]
[1644631674384,23.1019,98.276,98.18,0.024]
[1644631674584,5.09,98.275,98.18,2.83080295]
[1644631674784,5.09,98.275,98.19,15.2798]
[1644631675685,5.09,98.275,98.191,5.089]
[1644631676288,5.09,98.275,98.2,15.2784]
[1644631676489,5.09,98.275,98.2,0.024]
[1644631676687,5.089,98.277,98.201,5.089]
[1644631676886,5.089,98.277,98.197,2.80680295]
[1644631676887,5.09,98.278,98.202,5.77806251]
[1644631677087,5.09,98.278,98.195,2.80680295]
[1644631677286,5.09,98.278,98.201,5.089]
[1644631677509,23.7003,98.277,98.21,15.2762]
[1644631677711,5.089,98.276,98.21,15.2762]
[1644631679714,23.7003,98.277,98.22,15.2752]
[1644631679911,23.7003,98.277,98.21,0.024]
[1644631680113,40.55234933,98.279,98.212,2.80680295]
[1644631680412,14.68,98.32,98.217,2.80680295]
[1644631680616,14.68,98.33,98.223,2.80680295]
[1644631680813,14.68,98.34,98.23,50.9213]
[1644631681013,14.68,98.34,98.223,2.80680295]
[1644631681014,5.087,98.336,98.24,0.024]
[1644631681215,23.887,98.343,98.24,0.024]
[1644631681216,38.35266226,98.338,98.24,0.024]
[1644631681416,38.35266226,98.338,98.242,35.09427223]
[1644631681618,38.35266226,98.338,98.25,0.024]
[1644631681918,38.35266226,98.338,98.251,7.89280295]
[1644631682115,23.887,98.343,98.281,45.62627757]
[1644631682316,50.8859,98.37,98.281,45.62627757]
[1644631682317,5.086,98.359,98.29,14.68]
[1644631682516,48.4152,98.426,98.29,14.68]
[1644631682517,5.085,98.386,98.291,10.85792411]
[1644631682716,5.085,98.394,98.298,2.80680295]
[1644631682915,5.083,98.425,98.31,14.68]
[1644631683118,47.62230255,98.395,98.331,44.1507032]
[1644631683517,51.8293,98.449,98.331,44.1507032]
[1644631683718,51.8293,98.449,98.332,5.083]
[1644631684118,51.8293,98.449,98.33,14.68]
[1644631684717,5.083,98.449,98.34,15.2512]
[1644631684919,47.38543505,98.448,98.341,34.4714633]
[1644631685123,5.081,98.447,98.341,34.4714633]
[1644631685822,19.01748305,98.447,98.341,34.4714633]
[1644631686021,15.2521,98.44,98.37,15.2504]
[1644631686224,5.081,98.439,98.37,15.2504]
[1644631686824,5.081,98.439,98.371,47.59080874]
[1644631687425,5.081,98.439,98.37,15.2504]
[1644631687827,5.081,98.439,98.351,5.081]
[1644631688025,5.081,98.439,98.34,14.68]
[1644631688226,15.2533,98.43,98.34,14.68]
[1644631688427,15.2533,98.43,98.341,50.14314837]
[1644631688627,5.082,98.429,98.341,45.06214837]
[1644631689825,5.082,98.429,98.35,15.2538]
[1644631692429,47.38543505,98.448,98.35,15.2538]
[1644631692430,5.081,98.447,98.351,5.081]
[1644631692629,5.081,98.447,98.36,15.251]
[1644631694233,5.081,98.447,98.361,5.081]
[1644631695134,5.081,98.447,98.371,47.05993241]
[1644631695936,5.081,98.447,98.361,5.081]
[1644631696339,5.081,98.447,98.34,50.835]
[1644631696340,5.081,98.447,98.341,5.081]
[1644631697135,5.081,98.447,98.342,45.87555774]
[1644631697336,5.081,98.447,98.343,5.081]
[1644631697635,15.2516,98.44,98.37,15.2497]
[1644631697836,5.081,98.439,98.343,5.081]
[1644631698838,5.081,98.439,98.35,15.2519]
[1644631699039,15.2516,98.44,98.351,5.081]
[1644631699736,15.2516,98.44,98.343,5.081]
[1644631700839,15.2516,98.44,98.36,15.2517]
[1644631701140,15.2516,98.44,98.361,5.081]
[1644631701342,15.2516,98.44,98.361,4.71866]
[1644631701938,15.2516,98.44,98.361,4.67873]
[1644631702339,5.081,98.439,98.361,4.67873]
[1644631702740,5.081,98.439,98.361,4.64235]
[1644631703541,5.081,98.439,98.36,15.2517]
[1644631703742,5.081,98.439,98.324,5.081]
[1644631703743,15.2527,98.43,98.35,15.2535]
[1644631703941,29.9327,98.43,98.324,5.081]
[1644631704145,29.9327,98.43,98.323,23.9618]
[1644631704146,28.9908,98.429,98.323,23.9618]
[1644631704344,31.37446791,98.429,98.309,5.082]
[1644631704744,28.9908,98.429,98.33,15.2562]
[1644631705842,40.29035066,98.409,98.33,15.2562]
[1644631706042,40.29035066,98.409,98.331,5.082]
[1644631706243,40.29035066,98.409,98.341,39.73230927]
[1644631706844,40.29035066,98.409,98.341,39.68249927]
[1644631707342,40.29035066,98.409,98.34,15.22984]
[1644631707543,5.082,98.408,98.332,1.39182863]
[1644631707743,52.2665,98.408,98.321,1.39182863]
[1644631708144,52.2665,98.408,98.32,1.39182863]
[1644631708343,52.2665,98.408,98.317,1.39182863]
[1644631708545,52.2665,98.408,98.315,1.39182863]
[1644631708951,15.2575,98.4,98.323,1.39182863]
[1644631709146,5.083,98.399,98.324,36.2368769]
[1644631709347,5.083,98.399,98.324,37.62870553]
[1644631709546,5.083,98.399,98.362,0.00182863]
[1644631709949,5.083,98.399,98.332,2.80680295]
[1644631710150,15.2586,98.39,98.329,2.80680295]
[1644631710349,44.16163938,98.389,98.328,2.80680295]
[1644631710551,49.24463938,98.389,98.327,2.80680295]
[1644631710751,49.24463938,98.389,98.329,5.77225598]
[1644631710951,49.24463938,98.389,98.327,2.80680295]
[1644631711171,49.24463938,98.389,98.326,2.80680295]
[1644631711973,49.24463938,98.389,98.325,8.57905893]
[1644631712671,49.24463938,98.389,98.325,5.77225598]
[1644631712873,49.24463938,98.389,98.326,5.77225598]
[1644631713072,49.24463938,98.389,98.325,5.77225598]
[1644631714975,49.24463938,98.389,98.321,5.77225598]
[1644631715376,49.24463938,98.389,98.319,2.80680295]
[1644631715575,49.24463938,98.389,98.322,5.77225598]
[1644631715775,49.24463938,98.389,98.319,45.87622177]
[1644631715975,49.24463938,98.389,98.32,5.77225598]
[1644631717181,44.16163938,98.389,98.32,10.85525598]
[1644631717377,44.16163938,98.389,98.321,5.77225598]
[1644631717578,15.2586,98.39,98.321,5.77225598]
[1644631717778,5.083,98.439,98.33,15.2558]
[1644631717980,5.083,98.455,98.34,14.68]
[1644631718178,5.082,98.438,98.353,2.80680295]
[1644631718378,5.081,98.442,98.357,2.80680295]
[1644631718578,46.26950092,98.436,98.358,50.34488487]
[1644631718778,46.26950092,98.436,98.359,5.77225598]
[1644631718979,5.081,98.435,98.359,5.77225598]
[1644631719179,5.081,98.435,98.359,8.57905893]
[1644631719384,5.081,98.435,98.359,5.77225598]
[1644631719783,5.081,98.435,98.36,15.2491]
[1644631719980,5.081,98.435,98.361,5.77225598]
[1644631720385,5.081,98.435,81.902,99.5616425]
[1644631720386,5.081,98.435,98.335,2.80680295]
[1644631720581,14.68,98.43,98.332,5.081]
[1644631720783,15.2568,98.4,98.332,5.081]
[1644631720982,5.083,98.399,98.332,5.081]
[1644631721381,39.98954142,98.398,98.333,41.80942463]
[1644631721582,5.083,98.397,98.333,41.80942463]
[1644631723584,5.083,98.397,98.33,15.2563]
[1644631724588,5.083,98.397,98.331,34.87113652]
[1644631724787,39.98954142,98.398,98.34,15.2544]
[1644631729891,28.8699,98.419,98.34,15.2544]
[1644631730992,38.23875655,98.418,98.34,15.2544]
[1644631731193,5.082,98.417,98.341,5.082]
[1644631731893,5.082,98.417,98.351,38.25524771]
[1644631732095,5.082,98.417,98.352,5.082]
[1644631732295,5.082,98.418,98.352,5.082]
[1644631732495,5.081,98.433,98.352,5.082]
[1644631732897,3.6762202,98.433,98.352,5.082]
[1644631733097,45.23467071,98.432,98.352,5.082]
[1644631733296,5.081,98.431,98.352,5.082]
[1644631733497,5.081,98.431,98.36,15.2512]
[1644631733696,5.081,98.431,98.361,5.081]
[1644631733896,5.081,98.431,98.36,15.2512]
[1644631741108,15.2523,98.43,98.351,38.25524771]
[1644631741312,28.414,98.429,98.351,38.25524771]
[1644631742312,15.2536,98.42,98.351,38.25524771]
[1644631742511,5.082,98.419,98.351,38.25524771]
[1644631743115,5.082,98.445,98.352,5.082]
[1644631743321,5.082,98.443,98.36,15.2508]
[1644631743516,15.2492,98.45,98.361,5.081]
[1644631743719,5.081,98.449,98.361,5.081]
[1644631743921,5.081,98.449,98.352,5.081]
[1644631744122,48.74378537,98.433,98.352,5.081]
[1644631744719,48.74378537,98.433,98.371,42.96318726]
[1644631746446,5.081,98.449,98.371,42.96318726]
[1644631746647,5.081,98.433,98.38,15.2481]
[1644631746847,5.08,98.468,98.38,15.2481]
[1644631747647,15.2474,98.46,98.38,15.2481]
[1644631747852,5.08,98.459,98.381,5.08]
[1644631748846,15.249,98.45,98.381,5.08]
[1644631749048,5.08,98.449,98.37,15.2494]
[1644631749249,23.05,98.448,98.37,15.2494]
[1644631749447,5.08,98.447,98.37,15.2494]
[1644631749850,45.63837548,98.446,98.371,43.39993524]
[1644631750049,5.08,98.445,98.371,43.39993524]
[1644631752451,45.63837548,98.446,98.38,15.2478]
[1644631753650,45.63837548,98.446,98.381,5.08]
[1644631754951,5.08,98.445,98.381,5.08]
[1644631758456,5.08,98.445,98.37,15.2493]
[1644631761965,45.63837548,98.446,98.371,5.08]
[1644631762173,45.63837548,98.446,98.381,37.36461796]
[1644631765268,5.08,98.445,98.381,37.36461796]
[1644631768474,5.08,98.445,98.38,15.2464]
[1644631769076,2.38366791,98.444,98.361,5.08]
[1644631769277,5.081,98.443,98.341,2.80680295]
[1644631769477,5.081,98.443,98.352,45.98537384]
[1644631769676,2.38366791,98.442,98.352,45.98537384]
[1644631770078,5.081,98.441,98.352,45.98537384]
[1644631770478,17.63456791,98.44,98.352,45.98537384]
[1644631770978,7.46466791,98.439,98.35,15.2523]
[1644631771198,2.38366791,98.439,98.35,15.2523]
[1644631771395,7.46466791,98.438,98.35,15.2523]
[1644631771595,2.38366791,98.438,98.35,15.2523]
[1644631771901,7.46466791,98.437,98.35,15.2523]
[1644631772194,2.38366791,98.437,98.35,15.2523]
[1644631772395,29.3185,98.436,98.35,15.2523]
[1644631772795,15.2536,98.42,98.35,15.2523]
[1644631772996,35.39527356,98.418,98.35,15.2523]
[1644631773194,5.082,98.417,98.35,15.2523]
[1644631777299,22.8189,98.416,98.35,15.2523]
[1644631777499,5.082,98.415,98.35,15.2523]
[1644631779403,5.082,98.415,98.344,5.082]
[1644631780604,15.2536,98.42,98.344,5.082]
[1644631780804,5.082,98.436,98.344,5.082]
[1644631781006,23.4968,98.435,98.345,23.7089]
[1644631781305,23.4968,98.435,98.35,14.68]
[1644631781505,23.4968,98.435,98.35,29.9322]
[1644631781906,23.4968,98.435,98.36,50.8228]
[1644631782109,23.4968,98.435,98.361,43.07065001]
[1644631782307,23.4968,98.435,98.361,48.15165001]
[1644631782508,36.28437093,98.439,98.361,48.15165001]
[1644631782708,36.28437093,98.439,98.37,15.2469]
[1644631782909,36.28437093,98.439,98.371,5.081]
[1644631783313,36.28437093,98.439,98.362,5.081]
[1644631783509,5.081,98.457,98.362,5.081]
[1644631783711,5.081,98.457,98.363,2.38366791]
[1644631783909,23.2346,98.458,98.364,5.081]
[1644631784620,42.01482669,98.444,98.381,40.46284637]
[1644631784817,42.01482669,98.444,98.382,5.08]
[1644631785411,22.5627,98.469,98.382,5.08]
[1644631785611,5.079,98.468,98.382,24.8081]
[1644631786412,42.58702618,98.467,98.382,24.8081]
[1644631786613,5.08,98.466,98.382,24.8081]
[1644631786812,5.08,98.466,98.4,15.2442]
[1644631787013,5.08,98.466,98.4,59.53635674]
[1644631787216,5.08,98.466,98.4,44.29215674]
[1644631787415,5.08,98.466,98.382,24.8081]
[1644631787615,5.08,98.466,98.383,5.08]
[1644631788315,2.38366791,98.465,98.384,40.33399149]
[1644631788516,5.08,98.464,98.384,40.33399149]
[1644631788715,5.08,98.464,98.39,15.2461]
[1644631788916,2.38366791,98.463,98.39,15.2461]
[1644631789316,5.079,98.462,98.39,15.2461]
[1644631793120,42.58702618,98.467,98.4,15.2443]
[1644631793321,42.58702618,98.467,98.401,35.6898948]
[1644631794821,22.5627,98.469,98.41,15.2431]
[1644631795025,2.38366791,98.478,98.41,15.2431]
[1644631795026,5.079,98.468,98.41,15.2431]
[1644631795222,5.079,98.477,98.41,15.2431]
[1644631795723,41.59612058,98.475,98.41,15.2431]
[1644631796023,41.59612058,98.475,98.4,15.2445]
[1644631796024,7.46266791,98.474,98.4,15.2445]
[1644631796223,7.46266791,98.474,98.391,5.079]
[1644631796425,14.68,98.47,98.391,5.079]
[1644631796726,5.079,98.469,98.391,5.079]
[1644631796923,32.45946791,98.469,98.391,5.079]
[1644631797123,2.38366791,98.468,98.391,5.079]
[1644631797323,5.079,98.467,98.391,5.079]
[1644631797552,5.079,98.467,98.386,39.18938295]
[1644631797747,15.2489,98.46,98.386,39.18938295]
[1644631797949,36.14987988,98.459,98.386,39.18938295]
[1644631798848,32.14987988,98.459,98.386,39.18938295]
[1644631799050,5.08,98.458,98.386,39.18938295]
[1644631799454,5.08,98.458,98.38,15.2472]
[1644631799949,25.49026791,98.457,98.38,15.2472]
[1644631800157,5.08,98.456,98.38,15.2472]
[1644631800350,7.46366791,98.456,98.38,15.2472]
[1644631800551,2.38366791,98.455,98.38,15.2472]
[1644631800751,5.08,98.454,98.38,15.2472]
[1644631801151,2.38366791,98.453,98.38,15.2472]
[1644631801550,5.08,98.452,98.38,15.2472]
[1644631802653,5.08,98.456,98.38,15.2472]
[1644631803052,2.38366791,98.455,98.38,15.2472]
[1644631803251,5.08,98.454,98.38,15.2472]
[1644631803851,1.88366791,98.454,98.38,15.2472]
[1644631804052,5.08,98.453,98.38,15.2472]
[1644631804651,2.38366791,98.452,98.38,15.2472]
[1644631805151,5.08,98.451,98.38,15.2472]
[1644631807453,5.08,98.451,98.372,24.2567]
[1644631807652,15.2489,98.45,98.372,24.2567]
[1644631807855,29.9289,98.45,98.356,2.80680295]
[1644631808058,29.9289,98.45,98.33,65.515]
[1644631808059,31.74956791,98.449,98.343,2.80680295]
[1644631808253,31.74956791,98.449,98.325,2.80680295]
[1644631808454,20.67862096,98.448,98.326,38.00601796]
[1644631808752,26.91008781,98.447,98.326,38.00601796]
[1644631808954,25.91008781,98.447,98.326,38.00601796]
[1644631809153,20.67862096,98.446,98.327,5.081]
[1644631809355,39.04188984,98.439,98.326,38.00601796]
[1644631809554,14.68,98.43,98.327,5.082]
[1644631809754,22.8838,98.429,98.328,23.1013]
[1644631809955,27.9658,98.429,98.329,5.082]
[1644631810167,30.34946791,98.429,98.327,5.082]
[1644631810359,2.38366791,98.428,98.327,5.082]
[1644631810659,5.082,98.427,98.327,5.082]
[1644631810856,40.68954889,98.419,98.327,5.082]
[1644631811056,14.68,98.41,98.327,5.082]
[1644631811260,29.1978,98.409,98.327,5.082]
[1644631812058,29.1978,98.409,98.33,15.2548]
[1644631812258,24.1158,98.409,98.33,15.2548]
[1644631814561,24.1158,98.409,98.331,5.082]
[1644631815961,5.082,98.408,98.331,5.082]
[1644631817163,5.082,98.408,98.33,15.2548]
[1644631818065,15.2569,98.4,98.326,38.00601796]
[1644631818264,44.51044952,98.398,98.326,38.00601796]
[1644631818864,27.14536791,98.397,98.326,38.00601796]
[1644631819064,32.22836791,98.397,98.326,38.00601796]
[1644631819265,2.38366791,98.396,98.326,38.00601796]
[1644631819467,5.083,98.395,98.326,38.00601796]
[1644631819765,15.2583,98.39,98.326,38.00601796]
[1644631820165,5.083,98.389,98.326,38.00601796]
[1644631822068,5.083,98.389,98.311,5.083]
[1644631822069,2.38366791,98.388,98.311,5.083]
[1644631822269,15.2597,98.38,98.311,5.083]
[1644631822470,5.083,98.379,98.311,5.083]
[1644631822670,23.5404,98.378,98.311,5.083]
[1644631822873,5.083,98.377,98.301,23.3268]
[1644631823074,46.96765885,98.376,98.302,37.75055219]
[1644631823371,5.083,98.375,98.302,37.75055219]
[1644631828677,46.96765885,98.376,98.303,5.68889407]
[1644631828879,46.96765885,98.376,98.303,10.77189407]
[1644631829178,23.5404,98.378,98.304,5.68889407]
[1644631829378,23.5404,98.378,98.305,5.083]
[1644631829577,23.5404,98.378,98.326,1.40951814]
[1644631830279,45.80979154,98.377,98.33,1.40951814]
[1644631830782,45.80979154,98.377,98.328,1.40951814]
[1644631830981,45.80979154,98.377,98.329,1.40951814]
[1644631831479,45.80979154,98.377,98.33,1.40951814]
[1644631831680,5.083,98.376,98.33,1.40951814]
[1644631832581,5.083,98.376,98.329,1.40951814]
[1644631832882,5.083,98.376,98.33,1.40951814]
[1644631833288,5.083,98.376,98.331,1.40951814]
[1644631833489,5.083,98.376,98.33,1.40951814]
[1644631833687,45.80979154,98.377,98.336,1.40951814]
[1644631834086,45.80979154,98.377,98.337,1.40951814]
[1644631834786,45.80979154,98.377,98.338,1.40951814]
[1644631834984,45.80979154,98.377,98.337,1.40951814]
[1644631835184,45.80979154,98.377,98.344,1.40951814]
[1644631835384,45.80979154,98.377,98.345,1.40951814]
[1644631835792,45.80979154,98.377,98.344,1.40951814]
[1644631835986,23.5404,98.378,98.344,1.40951814]
[1644631836388,15.2568,98.4,98.347,1.40951814]
[1644631836590,22.7273,98.399,98.359,1.40951814]
[1644631836788,22.7273,98.399,98.36,1.40951814]
[1644631836987,22.7273,98.399,98.362,39.85725506]